bitfinex/quotes_ETHUSD_20250130
["timestamp","ask_amount","ask_price","bid_price","bid_amount"]
[1738265243320,6.11893,3268.6,3268.0,3.0599]
[1738265243544,3.05945,3268.6,3268.1,0.8212]
[1738265243860,3.05945,3268.6,3268.1,3.88105]
[1738265244060,3.05945,3268.6,3268.1,0.8212]
[1738265244224,3.05952,3268.5,3268.1,0.8212]
[1738265244558,3.05945,3268.6,3268.1,0.8212]
[1738265244949,6.11895,3268.6,3268.1,0.8212]
[1738265245252,0.8009,3269.0,3268.1,0.8212]
[1738265245253,3.05978,3268.2,3268.1,0.8212]
[1738265245582,3.05978,3268.2,3267.7,0.7829]
[1738265246066,3.05962,3268.4,3267.8,3.06013]
[1738265246434,3.87839,3269.0,3267.9,0.78469979]
[1738265246618,3.05924,3268.8,3268.2,3.05971]
[1738265246823,3.05932,3268.7,3268.3,0.7541]
[1738265247125,3.05942,3268.6,3268.3,0.7541]
[1738265247330,3.05951,3268.5,3268.3,0.7541]
[1738265247548,3.05951,3268.5,3268.0,3.81406]
[1738265247749,5.89471075,3268.8,3268.0,4.501403]
[1738265247918,3.05942,3268.6,3268.0,4.501403]
[1738265248234,3.05935,3268.7,3268.1,3.05987]
[1738265248562,3.05935,3268.7,3268.2,3.05977]
[1738265249063,3.05941,3268.6,3268.0,7.561313]
[1738265249400,3.05935,3268.7,3268.1,3.05985]
[1738265249929,3.05935,3268.7,3268.1,3.8159883]
[1738265250144,3.05905,3269.0,3268.5,3.05946]
[1738265250457,3.05925,3268.8,3268.3,3.0596]
[1738265252031,3.05925,3268.8,3268.2,0.7541]
[1738265252219,3.05925,3268.8,3268.2,3.8138]
[1738265254349,3.05925,3268.8,3268.2,4.57677583]
[1738265254882,3.05925,3268.8,3268.2,1.51707583]
[1738265255084,3.05925,3268.8,3268.3,3.05968]
[1738265256077,3.05934,3268.7,3268.2,3.81387]
[1738265256250,2.83544075,3268.7,3268.2,3.81387]
[1738265256576,3.05965,3268.4,3267.9,3.81381]
[1738265256905,3.09039018,3268.3,3267.9,0.7538]
[1738265257055,3.05975,3268.3,3267.9,0.7538]
[1738265258491,2.83544075,3268.4,3267.9,0.7538]
[1738265258787,2.83544075,3268.4,3267.9,7.785029]
[1738265259591,2.83544075,3268.4,3267.9,4.724969]
[1738265259785,2.83544075,3268.7,3267.9,1.664949]
[1738265259946,2.83544075,3268.7,3268.2,3.05971]
[1738265260146,5.89478075,3268.7,3268.3,0.7796]
[1738265260562,3.05943,3268.6,3268.3,0.7796]
[1738265260995,6.11892,3268.6,3268.3,0.7796]
[1738265261200,3.09007018,3268.6,3268.3,0.7796]
[1738265261793,3.09007018,3268.6,3267.8,0.8287]
[1738265261794,2.83544075,3268.4,3267.8,0.8287]
[1738265262099,5.89553075,3267.9,3267.7,5.2975]
[1738265262307,2.83544075,3267.9,3267.4,3.88922]
[1738265262464,3.05992,3268.1,3267.5,0.694979]
[1738265262769,2.83544075,3268.2,3267.6,3.06032]
[1738265263277,3.06015,3267.9,3267.4,0.8287]
[1738265264097,3.06041,3267.6,3267.1,0.7961]
[1738265264451,6.12046,3267.8,3267.1,3.85691]
[1738265265314,3.06028,3267.7,3267.1,3.85691]
[1738265265507,3.09102018,3267.6,3267.1,0.7961]
[1738265266804,3.09102018,3267.6,3267.1,3.85689]
[1738265266965,3.06038,3267.6,3267.1,3.85689]
[1738265267676,6.1208,3267.6,3267.1,0.7961]
[1738265267993,3.06063,3267.3,3267.1,0.7961]
[1738265268687,3.06074,3267.2,3266.8,0.7784]
[1738265268864,5.89608075,3267.3,3266.8,0.7784]
[1738265270413,3.06083,3267.1,3266.8,0.7784]
[1738265270593,3.06103,3266.9,3266.5,5.2975]
[1738265270801,3.06103,3266.9,3266.4,0.7606]
[1738265270975,3.06126,3266.7,3266.4,0.7606]
[1738265271476,3.06126,3266.7,3266.1,3.06172]
[1738265271477,3.06129,3266.6,3266.1,3.82232]
[1738265272678,3.06129,3266.6,3266.1,0.7606]
[1738265273112,2.83544075,3266.7,3266.2,3.06163]
[1738265273968,3.06111,3266.8,3266.2,3.06163]
[1738265274898,3.01111,3266.8,3266.2,3.06163]
[1738265276414,3.06135,3266.6,3266.1,0.7606]
[1738265276575,3.06135,3266.6,3266.1,3.82234]
[1738265276921,3.01111,3266.8,3266.1,3.82234]
[1738265277117,3.0612,3266.7,3266.1,3.82234]
[1738265277412,3.0612,3266.7,3266.1,3.82229]
[1738265277713,3.0612,3266.7,3266.2,3.06165]
[1738265278020,3.0612,3266.7,3266.1,6.88399]
[1738265278313,3.0612,3266.7,3266.2,3.06164]
[1738265279775,3.60144075,3267.0,3266.2,0.688393]
[1738265279982,3.59814075,3267.6,3266.8,3.06104]
[1738265280285,3.06055,3267.4,3266.8,3.06104]
[1738265280486,3.06078,3267.2,3266.6,3.87114]
[1738265280692,3.06087,3267.1,3266.6,3.87114]
[1738265280995,3.061,3266.9,3266.4,3.06142]
[1738265281314,3.061,3266.9,3266.4,0.7714]
[1738265281484,3.06119,3266.7,3266.2,3.06161]
[1738265281685,3.06146,3266.5,3266.2,0.383301]
[1738265281888,3.06146,3266.5,3266.1,0.7714]
[1738265282091,5.89665075,3266.7,3266.1,3.83314]
[1738265282421,5.89665075,3266.7,3266.1,6.89484]
[1738265282826,3.06121,3266.7,3266.2,3.06161]
[1738265282998,2.83544075,3267.0,3266.5,3.06137]
[1738265282999,3.06092,3267.0,3266.5,3.06137]
[1738265283220,3.06075,3267.2,3266.6,3.88673]
[1738265283425,5.89611075,3267.3,3266.7,3.06113]
[1738265284011,5.89611075,3267.3,3266.7,3.06112]
[1738265284307,5.89611075,3267.3,3266.6,0.8255]
[1738265284507,3.06078,3267.2,3266.7,3.06119]
[1738265284747,3.06078,3267.2,3266.8,0.388669]
[1738265285849,3.06055,3267.4,3266.8,3.449709]
[1738265286053,3.06065,3267.3,3266.8,3.449709]
[1738265288341,3.06087,3267.1,3266.8,0.388669]
[1738265288854,3.06087,3267.1,3266.6,0.8255]
[1738265289164,3.06087,3267.1,3266.6,3.88676]
[1738265289359,3.06065,3267.3,3266.7,3.09172963]
[1738265289525,3.06091,3267.0,3266.6,0.8255]
[1738265289726,0.79244018,3267.2,3266.6,0.8255]
[1738265289930,3.06115,3266.8,3266.4,0.7954]
[1738265290265,3.06121,3266.7,3266.4,0.7954]
[1738265290733,5.89640075,3267.0,3266.4,0.7954]
[1738265290933,2.83544075,3267.0,3266.4,3.85681]
[1738265291173,3.06109,3266.9,3266.4,0.7954]
[1738265292169,5.89643075,3267.0,3266.4,0.7954]
[1738265292343,3.0611,3266.8,3266.4,0.7954]
[1738265296871,3.06096,3267.0,3266.4,0.7954]
[1738265297170,3.06096,3267.0,3266.5,3.06137]
[1738265297874,6.12195,3267.0,3266.5,3.06137]
[1738265298287,3.06096,3267.0,3266.4,0.7954]
[1738265298438,3.06109,3266.9,3266.4,0.7954]
[1738265298786,0.7618,3267.2,3266.4,0.7954]
[1738265299081,3.06127,3266.7,3266.4,0.7954]
[1738265299285,3.06107,3266.9,3266.4,0.7954]
[1738265300536,0.7618,3267.2,3266.4,0.7954]
[1738265300737,3.06121,3266.7,3266.4,0.7954]
[1738265301172,3.06102,3266.9,3266.4,0.7954]
[1738265301466,3.0611,3266.8,3266.4,0.7954]
[1738265301671,3.06102,3266.9,3266.4,0.7954]
[1738265301836,3.06102,3266.9,3266.4,3.85685]
[1738265302478,3.06112,3266.8,3266.4,0.7954]
[1738265303462,3.06102,3266.9,3266.4,0.7954]
[1738265303664,3.06102,3266.9,3266.4,3.85685]
[1738265303867,3.06102,3266.9,3266.4,6.9183]
[1738265304174,3.06102,3266.9,3266.4,3.85685]
[1738265304978,3.06054,3267.4,3266.6,0.8047]
[1738265305139,0.7731,3267.7,3266.0,2.83544075]
[1738265305140,3.06039,3267.6,3267.0,3.86561]
[1738265305338,3.0,3267.5,3267.0,3.86561]
[1738265305794,6.12044,3267.8,3267.1,3.06079]
[1738265305999,3.06022,3267.8,3267.3,3.06061]
[1738265306291,3.06022,3267.8,3267.4,0.8047]
[1738265315886,3.06,3268.0,3267.4,0.8047]
[1738265316191,6.12005,3268.0,3267.4,3.86518]
[1738265316416,3.06,3268.0,3267.4,3.86518]
[1738265316721,3.05983,3268.2,3267.5,3.06036]
[1738265317080,3.05989,3268.1,3267.6,3.06034]
[1738265317480,3.05983,3268.2,3267.6,3.06034]
[1738265317824,3.05989,3268.1,3267.5,6.12073]
[1738265318396,3.05989,3268.1,3267.6,3.06034]
[1738265318706,3.05989,3268.1,3267.4,1.497275]
[1738265318707,3.05997,3268.0,3267.4,1.497275]
[1738265318909,3.06004,3268.0,3267.4,4.557785]
[1738265319292,3.06046,3267.5,3267.1,0.7566]
[1738265319520,3.06055,3267.4,3267.1,0.7566]
[1738265320331,3.06047,3267.5,3267.1,0.7566]
[1738265321053,6.121,3267.5,3267.1,0.7566]
[1738265321358,3.06047,3267.5,3267.1,0.7566]
[1738265321758,6.121,3267.5,3267.1,0.7566]
[1738265322056,3.06047,3267.5,3267.1,0.7566]
[1738265322351,3.06055,3267.4,3267.1,0.7566]
[1738265323233,0.5575,3267.5,3266.8,0.7588]
[1738265323418,3.01409,3266.8,3266.7,0.15341611]
[1738265324270,3.06085,3267.1,3266.7,0.15341611]
[1738265324420,2.83544075,3268.1,3267.0,3.06084]
[1738265324623,3.06025,3267.7,3267.2,3.85942]
[1738265324838,3.7864,3267.9,3267.2,3.85942]
[1738265325041,3.0,3267.7,3267.2,3.85942]
[1738265325419,6.06025,3267.7,3267.2,0.7987]
[1738265325769,3.06035,3267.6,3267.2,0.7987]
[1738265325969,3.06051,3267.5,3267.2,0.7987]
[1738265326472,6.0603,3267.7,3267.2,0.7987]
[1738265327523,5.89540075,3268.1,3267.2,1.18771056]
[1738265327724,3.06012,3267.9,3267.3,3.06055]
[1738265329369,6.12028,3267.9,3267.3,3.06055]
[1738265329579,3.06012,3267.9,3267.3,3.06055]
[1738265331352,3.05992,3268.1,3267.4,0.86160335]
[1738265331688,3.05992,3268.1,3267.5,0.39221534]
[1738265331892,3.05992,3268.1,3267.6,3.06033]
[1738265334681,3.05992,3268.1,3267.4,3.89145]
[1738265334874,3.05992,3268.1,3267.4,0.831]
[1738265335082,3.05992,3268.1,3267.5,3.06042]
[1738265337359,3.61034075,3268.4,3267.4,0.831]
[1738265337560,3.06043,3267.6,3267.4,0.831]
[1738265338683,6.12041,3267.8,3267.4,0.831]
[1738265338988,3.06019,3267.8,3267.4,0.831]
[1738265339295,3.05998,3268.0,3267.4,3.89152]
[1738265339497,3.05998,3268.0,3267.4,6.952]
[1738265339796,3.05998,3268.0,3267.5,0.6952]
[1738265339969,3.05998,3268.0,3267.5,3.75562]
[1738265340852,3.05981,3268.2,3267.5,0.6952]
[1738265341179,3.05981,3268.2,3267.7,3.8796]
[1738265341493,2.83544075,3268.4,3267.7,3.8796]
[1738265341697,5.89512075,3268.4,3267.8,3.06015]
[1738265342192,3.05978,3268.2,3267.7,0.8194]
[1738265342693,3.05962,3268.4,3267.8,3.09068955]
[1738265342894,3.05962,3268.4,3267.9,3.87943]
[1738265344397,3.05962,3268.4,3267.9,0.8194]
[1738265345384,3.0597,3268.3,3267.9,0.8194]
[1738265346456,3.06006,3267.9,3267.8,5.2975]
[1738265346801,3.06033,3267.7,3267.5,0.7661]
[1738265347001,3.06013,3267.9,3267.5,0.7661]
[1738265347372,3.06016,3267.8,3267.5,0.7661]
[1738265347573,2.83544075,3267.8,3267.2,6.0636]
[1738265347870,3.06063,3267.3,3267.2,5.2975]
[1738265348458,3.06054,3267.4,3267.2,5.2975]
[1738265348659,3.06063,3267.3,3267.2,5.2975]
[1738265349375,3.06054,3267.4,3267.2,5.2975]
[1738265349555,3.59574075,3267.5,3267.2,5.2975]
[1738265349758,3.06028,3267.7,3267.3,0.8172]
[1738265350312,3.06038,3267.6,3267.3,0.8172]
[1738265352300,5.89590075,3267.5,3267.2,5.2975]
[1738265352603,3.06054,3267.4,3267.2,5.2975]
[1738265353590,2.83544075,3267.5,3267.2,5.2975]
[1738265353791,5.89590075,3267.5,3267.2,5.2975]
[1738265355389,3.06058,3267.4,3267.2,5.2975]
[1738265356801,2.83544075,3267.5,3267.2,5.2975]
[1738265357212,2.83544075,3267.8,3267.2,5.2975]
[1738265357416,5.89561075,3267.8,3267.3,3.06062]
[1738265359321,5.89561075,3267.8,3267.2,5.2975]
[1738265359813,5.89561075,3267.8,3267.2,8.35815]
[1738265360002,5.89561075,3267.8,3267.3,3.06062]
[1738265360818,2.83544075,3267.8,3267.5,0.8266]
[1738265364629,5.89560075,3267.8,3267.5,0.8266]
[1738265366883,2.83544075,3267.8,3267.5,0.8266]
[1738265367993,6.69287075,3268.1,3267.5,0.8266]
[1738265368195,6.69287075,3268.1,3267.6,3.06026]
[1738265368196,2.83544075,3268.1,3267.6,3.06026]
[1738265368513,2.83544075,3268.4,3267.8,3.81247]
[1738265368681,3.05973,3268.3,3267.8,3.81247]
[1738265368888,2.83544075,3268.1,3267.8,0.7524]
[1738265370103,2.83544075,3268.4,3267.8,0.7524]
[1738265370430,2.83544075,3268.4,3267.8,3.81246]
[1738265370734,5.89505075,3268.4,3267.8,3.81246]
[1738265370904,5.89505075,3268.4,3267.8,6.87255]
[1738265371104,5.89505075,3268.4,3267.8,3.81246]
[1738265371434,2.83544075,3268.4,3267.9,3.05997]
[1738265372521,2.83544075,3268.4,3267.8,0.7524]
[1738265372839,3.05942,3268.6,3268.1,3.05988]
[1738265373016,5.89510075,3268.4,3267.8,0.7524]
[1738265373190,3.05979,3268.2,3267.8,0.7524]
[1738265373789,5.89510075,3268.4,3267.8,3.81255]
[1738265374228,2.83544075,3268.4,3267.9,3.06003]
[1738265374433,2.83544075,3268.4,3267.9,6.12003]
[1738265374650,2.83544075,3268.4,3268.0,3.05995]
[1738265374838,2.83544075,3268.4,3267.9,3.06]
[1738265375040,5.89483075,3268.7,3268.1,3.05983]
[1738265375192,2.83544075,3268.7,3268.0,3.05991]
[1738265375533,3.05914,3268.9,3268.4,3.05959]
[1738265375828,3.05914,3268.9,3268.5,0.8157]
[1738265376194,5.89449075,3269.0,3268.5,3.8752]
[1738265376429,3.05918,3268.9,3268.5,0.8157]
[1738265376627,6.11783,3269.2,3268.6,3.05933]
[1738265376808,3.05891,3269.2,3268.6,3.05933]
[1738265377140,2.83544075,3269.6,3268.8,3.05916]
[1738265377335,3.05858,3269.5,3268.9,3.85556]
[1738265377550,3.05869,3269.4,3268.9,0.7965]
[1738265378338,3.05869,3269.4,3268.9,3.8556]
[1738265378741,5.89398075,3269.6,3268.9,4.547076]
[1738265378947,3.05831,3269.8,3269.2,3.05878]
[1738265379239,8.31843075,3270.2,3269.5,3.0585]
[1738265379427,5.89343075,3270.2,3269.6,3.05844]
[1738265380240,3.05802,3270.1,3269.6,3.05844]
[1738265380608,3.05736,3270.8,3270.2,3.05784]
[1738265380807,0.7979,3271.0,3270.3,3.05781]
[1738265380991,3.85512,3271.0,3270.4,3.05771]
[1738265381437,0.7979,3271.0,3270.4,3.05771]
[1738265381602,5.89255075,3271.1,3270.4,3.05771]
[1738265381807,3.05685,3271.4,3270.7,3.05735]
[1738265381993,6.64253075,3272.0,3270.5,0.80037486]
[1738265382192,2.83544075,3272.3,3271.4,3.05673]
[1738265382393,3.0562,3272.1,3271.4,3.05673]
[1738265382637,3.05626,3272.0,3271.3,3.05685]
[1738265382844,3.05626,3272.0,3271.0,5.2975]
[1738265383052,3.05611,3272.2,3271.5,3.05669]
[1738265383209,3.0558,3272.5,3271.8,3.05642]
[1738265383548,3.05596,3272.3,3271.6,3.8817]
[1738265384042,3.05596,3272.3,3271.6,0.8251]
[1738265384216,3.05596,3272.3,3271.7,3.05651]
[1738265384540,3.05577,3272.5,3271.7,3.05651]
[1738265385074,5.89119075,3272.6,3271.8,5.2975]
[1738265385243,5.89119075,3272.6,3271.9,3.05631]
[1738265385423,2.83544075,3272.6,3271.9,3.05631]
[1738265385627,3.05583,3272.5,3271.9,3.05631]
[1738265386083,2.85058771,3272.9,3271.9,1.141032]
[1738265386267,5.89848771,3272.9,3272.0,0.03055889]
[1738265386424,3.05559,3272.7,3272.0,3.08671889]
[1738265386627,3.05559,3272.7,3272.0,3.05616]
[1738265386825,2.84308771,3272.9,3272.0,3.05616]
[1738265387059,2.84308771,3272.9,3272.0,3.05617]
[1738265387378,3.05566,3272.7,3271.8,8.3539]
[1738265387675,2.84308771,3272.9,3271.8,8.3539]
[1738265387986,2.83544075,3272.3,3271.8,5.2975]
[1738265388192,3.05632,3271.9,3271.8,5.2975]
[1738265388492,3.05632,3271.9,3271.3,0.62591384]
[1738265388493,3.05654,3271.7,3271.3,6.1001]
[1738265388649,3.05645,3271.8,3271.3,6.1001]
[1738265388848,3.05645,3271.8,3271.3,7.969814]
[1738265389045,3.05645,3271.8,3271.3,6.1001]
[1738265389703,3.05662,3271.6,3271.3,6.1001]
[1738265389882,3.0567,3271.6,3271.3,6.1001]
[1738265390561,3.0565,3271.8,3271.3,6.1001]
[1738265391646,3.05625,3272.0,3271.3,9.15698]
[1738265391850,3.05625,3272.0,3271.4,0.03056458]
[1738265392097,3.05642,3271.8,3271.3,7.969798]
[1738265392295,3.05605,3272.2,3271.3,7.969798]
[1738265392501,3.05589,3272.4,3271.5,0.75]
[1738265392665,3.05586,3272.4,3271.6,5.2975]
[1738265392873,3.05586,3272.4,3271.7,0.60475]
[1738265393067,3.0555,3272.8,3272.1,3.05605]
[1738265393397,3.05566,3272.7,3272.0,0.75]
[1738265393593,3.05569,3272.6,3272.0,0.75]
[1738265393752,3.05569,3272.6,3272.0,3.80622]
[1738265393955,3.0555,3272.8,3272.0,5.022233]
[1738265394197,6.11106,3272.8,3272.0,5.022233]
[1738265394360,3.0556,3272.7,3272.0,5.022233]
[1738265394562,3.05531,3273.0,3272.0,1.966013]
[1738265394764,3.05542,3272.9,3272.3,3.05593]
[1738265394999,3.05542,3272.9,3272.3,8.35343]
[1738265395154,3.05542,3272.9,3272.3,8.35344]
[1738265395363,3.0552,3273.1,3272.3,5.2975]
[1738265395599,3.63054075,3273.2,3272.3,5.2975]
[1738265395600,3.05569,3272.6,3272.3,5.2975]
[1738265395763,3.05578,3272.5,3272.4,0.52975]
[1738265396196,3.05578,3272.5,3272.3,5.2975]
[1738265396527,3.05559,3272.7,3272.3,5.2975]
[1738265397430,3.05576,3272.5,3272.3,5.2975]
[1738265397632,3.05586,3272.4,3272.3,5.2975]
[1738265398691,3.05563,3272.7,3272.3,5.2975]
[1738265398990,3.05563,3272.7,3272.3,5.85780788]
[1738265399388,3.05551,3272.8,3272.4,0.7786]
[1738265399583,3.05558,3272.7,3272.4,0.7786]
[1738265399835,3.05576,3272.5,3272.4,0.7786]
[1738265400004,3.05586,3272.4,3272.3,5.2975]
[1738265400843,3.05576,3272.5,3271.8,6.0589]
[1738265400844,3.05632,3271.9,3271.8,6.0589]
[1738265401133,3.05632,3271.9,3271.2,8.93]
[1738265401134,3.0567,3271.5,3271.4,5.2975]
[1738265401437,3.05696,3271.3,3270.8,5.2975]
[1738265401618,2.83544075,3271.5,3270.8,5.2975]
[1738265401619,3.05722,3271.0,3270.8,5.2975]
[1738265401948,3.05718,3271.0,3270.8,5.2975]
[1738265402091,3.0571,3271.1,3270.8,5.2975]
[1738265402286,3.057,3271.2,3270.9,0.60589]
[1738265402587,3.05716,3271.0,3270.9,0.60589]
[1738265402831,3.05716,3271.0,3270.8,5.2975]
[1738265403391,3.05726,3270.9,3270.8,5.2975]
[1738265404012,3.05726,3270.9,3270.4,5.2975]
[1738265404218,3.05747,3270.7,3270.4,6.0628]
[1738265404503,2.83544075,3271.2,3270.4,6.0628]
[1738265404703,3.05737,3270.8,3270.5,0.60628]
[1738265405318,3.05754,3270.6,3270.5,0.60628]
[1738265405510,3.05729,3270.9,3270.4,6.0628]
[1738265405905,3.05726,3270.9,3270.4,6.0628]
[1738265406102,2.86608093,3270.9,3270.4,6.0628]
[1738265406342,3.05763,3270.5,3270.4,5.2975]
[1738265408850,3.0581,3270.1,3269.8,0.8091]
[1738265409051,3.05794,3270.2,3269.8,0.61066]
[1738265409052,5.89338075,3270.2,3269.8,0.61066]
[1738265409237,3.05811,3270.0,3269.8,0.61066]
[1738265409442,5.89338075,3270.2,3269.8,0.61066]
[1738265409642,3.05808,3270.1,3269.8,0.61066]
[1738265411260,3.05808,3270.1,3269.7,5.2975]
[1738265411659,3.05822,3269.9,3269.7,5.2975]
[1738265411865,3.05829,3269.8,3269.7,5.2975]
[1738265412026,3.05829,3269.8,3269.5,0.8091]
[1738265412226,3.05829,3269.8,3269.4,5.2975]
[1738265412569,3.05829,3269.8,3269.4,6.133135]
[1738265412872,3.05822,3269.9,3269.4,6.133135]
[1738265413731,3.05835,3269.8,3269.4,6.133135]
[1738265414069,3.05822,3269.9,3269.4,5.2975]
[1738265414372,3.05834,3269.8,3269.4,5.2975]
[1738265414578,3.05851,3269.6,3269.2,0.8192]
[1738265414729,3.05834,3269.8,3269.2,0.8192]
[1738265415445,3.05845,3269.7,3269.2,0.8192]
[1738265415642,0.03064018,3269.6,3269.2,0.8192]
[1738265415843,3.05848,3269.6,3269.2,0.8192]
[1738265416048,3.05834,3269.8,3269.2,1.54383968]
[1738265416580,3.05834,3269.8,3269.2,4.88703975]
[1738265416948,6.11629,3270.0,3269.3,3.05869]
[1738265417150,3.05812,3270.0,3269.2,4.88703975]
[1738265417481,6.11629,3270.0,3269.3,4.07713397]
[1738265417637,3.05821,3269.9,3269.3,4.07713397]
[1738265417837,3.05811,3270.0,3269.4,3.0586]
[1738265418033,3.05826,3269.9,3269.3,4.07720397]
[1738265418547,3.05811,3270.0,3269.4,3.05865]
[1738265419687,3.05811,3270.0,3269.3,1.01845397]
[1738265419688,3.0583,3269.8,3269.3,1.01845397]
[1738265419900,3.0583,3269.8,3269.3,4.07719397]
[1738265420254,3.05811,3270.0,3269.4,3.05865]
[1738265420494,3.05811,3270.0,3269.4,3.8541574]
[1738265420650,3.0582,3269.9,3269.4,3.8541574]
[1738265422098,3.05799,3270.2,3269.5,0.0305848]
[1738265422263,3.05799,3270.2,3269.4,0.7955074]
[1738265422264,3.05799,3270.2,3269.7,3.05835]
[1738265422472,3.05784,3270.3,3269.7,3.05835]
[1738265422668,0.8278,3270.4,3269.6,0.7732]
[1738265422855,3.05821,3269.9,3269.6,0.7732]
[1738265423604,3.05803,3270.1,3269.6,0.7732]
[1738265424007,6.11612,3270.1,3269.6,0.7732]
[1738265424211,3.05803,3270.1,3269.6,0.7732]
[1738265424915,3.05785,3270.3,3269.6,3.83165]
[1738265425058,3.05802,3270.1,3269.7,0.689017]
[1738265425266,3.05778,3270.4,3269.8,3.05821]
[1738265425591,3.05759,3270.6,3269.9,3.87414]
[1738265425798,3.05775,3270.4,3269.9,3.87414]
[1738265426808,3.05759,3270.6,3269.9,3.87414]
[1738265426975,3.05768,3270.5,3270.0,0.94774168]
[1738265427171,3.05768,3270.5,3270.0,0.917164]
[1738265427374,3.05768,3270.5,3270.0,0.94774171]
[1738265427586,3.05768,3270.5,3270.0,0.917164]
[1738265427791,3.05776,3270.4,3270.0,0.917164]
[1738265427963,3.05787,3270.3,3269.9,0.816]
[1738265428964,6.11578,3270.3,3269.9,0.816]
[1738265429163,3.05808,3270.1,3269.9,0.816]
[1738265429475,3.05762,3270.6,3269.9,0.816]
[1738265429702,3.05762,3270.6,3270.1,3.05798]
[1738265430000,3.05762,3270.6,3270.2,0.8236]
[1738265430882,3.05766,3270.5,3270.2,0.8236]
[1738265431314,3.05762,3270.6,3270.2,0.8236]
[1738265431609,3.0574,3270.8,3270.2,3.88142]
[1738265431779,2.83544075,3271.1,3270.3,5.2975]
[1738265431982,3.0577,3270.5,3270.3,5.2975]
[1738265432196,3.0576,3270.6,3270.3,5.2975]
[1738265434978,3.05769,3270.5,3270.3,5.2975]
[1738265437024,3.05756,3270.6,3270.3,5.2975]
[1738265438534,3.05764,3270.5,3270.3,5.2975]
[1738265440906,6.11534,3270.5,3270.3,5.2975]
[1738265441125,3.05764,3270.5,3270.3,5.2975]
[1738265442650,3.05772,3270.4,3270.3,5.2975]
[1738265442793,3.08836018,3270.4,3270.3,5.2975]
[1738265442994,3.05772,3270.4,3270.3,5.2975]
[1738265443195,6.86722,3270.4,3270.3,2.23968]
[1738265443496,0.8095,3270.3,3269.1,0.8083]
[1738265443816,3.05863,3269.5,3269.1,3.6628289]
[1738265444928,3.05863,3269.5,3269.2,0.45755707]
[1738265445132,3.05875,3269.3,3269.2,0.45755707]
[1738265446608,3.05885,3269.2,3269.1,2.23968]
[1738265446843,0.03064018,3269.5,3268.6,0.75448089]
[1738265447009,3.05915,3268.9,3268.6,0.14881158]
[1738265447215,3.05932,3268.7,3268.6,0.14881158]
[1738265447416,6.11835,3268.9,3268.6,0.14881158]
[1738265447617,3.05915,3268.9,3268.6,0.14881158]
[1738265450029,3.05927,3268.8,3268.6,0.14881158]
[1738265450211,3.05932,3268.7,3268.6,0.14881158]
[1738265452217,3.0592,3268.9,3268.6,0.14881158]
[1738265452734,3.05924,3268.8,3268.6,0.14881158]
[1738265453518,3.05913,3268.9,3268.6,0.14881158]
[1738265454923,6.8842,3269.1,3268.6,0.14881158]
[1738265455123,3.05904,3269.0,3268.6,0.14881158]
[1738265456102,3.05889,3269.2,3268.7,0.8041]
[1738265457762,6.11783,3269.2,3268.7,0.8041]
[1738265458557,3.05889,3269.2,3268.7,0.8041]
[1738265458755,3.05889,3269.2,3268.7,3.86339]
[1738265459050,3.05889,3269.2,3268.7,0.8041]
[1738265459259,3.0587,3269.4,3268.7,3.86337]
[1738265459465,3.05876,3269.3,3268.8,3.46038816]
[1738265460044,3.05876,3269.3,3268.8,0.40121816]
[1738265460225,3.05876,3269.3,3268.7,6.10304]
[1738265460447,3.0589,3269.2,3268.7,3.04378]
[1738265460929,3.05909,3269.0,3268.7,3.04378]
[1738265461130,3.05922,3268.8,3268.7,2.23968]
[1738265461340,3.05909,3269.0,3268.7,2.23968]
[1738265461516,3.05913,3268.9,3268.7,2.23968]
[1738265462358,3.05909,3269.0,3268.7,2.23968]
[1738265462523,3.05909,3269.0,3268.6,0.14881158]
[1738265463042,3.05918,3268.9,3268.6,0.14881158]
[1738265466359,3.05899,3269.1,3268.6,0.14881158]
[1738265466516,3.05899,3269.1,3268.6,3.20819158]
[1738265467047,3.05905,3269.0,3268.6,0.14881158]
[1738265467565,3.05893,3269.2,3268.6,3.20821158]
[1738265467772,3.05897,3269.1,3268.6,0.14881158]
[1738265467936,3.05921,3268.9,3268.6,0.14881158]
[1738265468929,3.059,3269.1,3268.6,0.14881158]
[1738265469310,3.059,3269.1,3268.6,3.20819158]
[1738265470035,3.05881,3269.3,3268.8,3.05922]
[1738265470230,3.05881,3269.3,3268.9,0.8168]
[1738265471885,3.05891,3269.2,3268.9,0.8168]
[1738265472945,3.05876,3269.3,3268.9,0.8168]
[1738265473149,3.05869,3269.4,3268.9,0.8168]
[1738265473348,3.05883,3269.3,3268.9,0.8168]
[1738265474240,3.05869,3269.4,3268.9,0.8168]
[1738265474577,2.83544075,3269.9,3269.1,3.05889]
[1738265474781,2.83544075,3269.9,3269.2,0.03058542]
[1738265475337,2.83544075,3269.9,3269.1,3.05889]
[1738265475581,5.89371075,3269.9,3269.2,0.03058543]
[1738265475790,2.83544075,3269.9,3269.2,0.7675]
[1738265476138,3.05843,3269.7,3269.2,0.7675]
[1738265476341,2.83544075,3270.5,3269.6,3.05841]
[1738265476685,3.05797,3270.2,3269.7,0.7668]
[1738265476982,3.0581,3270.0,3269.7,0.7668]
[1738265477182,3.05829,3269.8,3269.4,0.8037]
[1738265477393,3.05843,3269.7,3269.4,0.8037]
[1738265477686,6.11665,3269.8,3269.4,0.8037]
[1738265478255,3.05829,3269.8,3269.4,0.8037]
[1738265478659,3.05839,3269.7,3269.4,0.8037]
[1738265479077,3.05857,3269.5,3269.2,2.23968]
[1738265479256,3.05875,3269.3,3269.2,2.23968]
[1738265480251,3.05857,3269.5,3268.8,3.88712]
[1738265480444,3.05876,3269.3,3268.8,3.88712]